Cogmind - Beta 15 @@@ ROGUE MODE // 2025.05.31 @ 20:48:26 Player: raiguard Result: Destroyed by G-47 Trooper with Particle Gun Performance ------------- Evolutions (3) 1500 Regions Visited (7) 1400 Robots Destroyed (46) 230 Value Destroyed (1684) 1684 Prototype IDs (0) 0 Alien Tech Used (0) 0 Bonus (1243) 1243 TOTAL SCORE: 6057 Bonus ------- High Alert Combat Kills 265 Follower Combat Kills 990 Friendly Fire -12 Cogmind --------- Core Integrity 0/700 Matter 21/300 Energy 100/100 System Corruption 0% Temperature Cool (9) Movement Treading (160) Location -7/Factory Parts ------- > --- POWER (1) -------- (None) > --- PROPULSION (5) --- Heavy Treads > --- UTILITY (5) ------ Large Storage Unit > --- WEAPON (2) ------- Katana > --- INVENTORY (15) --- Improved Ion Engine Light Nuclear Core Light Nuclear Core Improved Heat Sink Compact Battery (200) Launcher Guidance Computer Hardened Medium Armor Plating Hardened Medium Armor Plating Improved Medium Armor Plating Improved Medium Armor Plating Improved Shield Generator Battle Rifle Peak State ------------ > --- POWER ------------ Antimatter Reactor > --- PROPULSION ------- Light Treads Heavy Treads > --- UTILITY ---------- Large Storage Unit Damper Plating > --- WEAPON ----------- Battle Rifle Heavy Missile Launcher > --- INVENTORY -------- Improved Ion Engine Light Nuclear Core Light Nuclear Core Improved Heat Sink Compact Battery Launcher Guidance Computer Hardened Medium Armor Plating Hardened Medium Armor Plating Improved Medium Armor Plating Improved Medium Armor Plating Improved Shield Generator Battle Rifle Katana [Rating: 55] Favorites ----------- Power Antimatter Reactor Engine Improved Ion Engine Power Core Nuclear Core Reactor Antimatter Reactor Propulsion Light Treads Treads Light Treads Leg Aluminum Leg Utility Large Storage Unit Device Weight Redist. System Storage Large Storage Unit Processor Advanced Targeting Computer Protection Damper Plating Weapon Battle Rifle Energy Gun Medium Laser Ballistic Gun Battle Rifle Ballistic Cannon Improved Light Cannon Launcher Heavy Missile Launcher Slashing Weapon Katana Build | -11 -10 -9 -9 -8 -7 -7 -7 ------- Run | Yrd Mat Mat Sto Mat Fac Was Fac Slots Evolved 6 | . . 2 . 2 2 . . Power . | . . . . . . . . Propulsion 3 | . . . . 1 2 . . Utility 3 | . . 2 . 1 . . . Weapon . | . . . . . . . . Parts Attached 58 | 7 4 3 12 5 8 12 7 Power 9 | 2 1 . 3 1 . 2 . Engine 7 | 2 1 . 3 . . 1 . Core 1 | . . . . 1 . . . Reactor 1 | . . . . . . 1 . Propulsion 19 | 2 . . 4 1 6 5 1 Treads 16 | 2 . . 2 1 6 4 1 Leg 3 | . . . 2 . . 1 . Wheel . | . . . . . . . . Hover . | . . . . . . . . Flight . | . . . . . . . . Utility 15 | 1 1 3 1 2 1 2 4 Device 5 | . . 1 1 . 1 . 2 Storage 5 | 1 1 2 . . . . 1 Processor 1 | . . . . 1 . . . Hackware . | . . . . . . . . Protection 4 | . . . . 1 . 2 1 Artifact . | . . . . . . . . Weapon 15 | 2 2 . 4 1 1 3 2 Energy Gun 1 | 1 . . . . . . . Energy Cannon . | . . . . . . . . Ballistic Gun 8 | 1 . . 3 1 1 2 . Ballistic Cannon 1 | . 1 . . . . . . Launcher 4 | . 1 . 1 . . 1 1 Special Weapon . | . . . . . . . . Impact Weapon . | . . . . . . . . Slashing Weapon 1 | . . . . . . . 1 Piercing Weapon . | . . . . . . . . Special Melee Weapon . | . . . . . . . . Unidentified Prototypes . | . . . . . . . . Parts Lost 26 | . . . 4 1 . 16 5 Power 2 | . . . . . . 1 1 Propulsion 13 | . . . 1 1 . 10 1 Utility 3 | . . . . . . 2 1 Weapon 8 | . . . 3 . . 3 2 Highest Loss Streak 10 | . . . 3 1 . 10 4 To Critical Strikes . | . . . . . . . . Average Backups 10 | 3 8 12 13 14 14 6 8 Power 2 | . 1 2 3 4 4 2 2 Propulsion 2 | 2 4 5 5 4 3 . . Utility 3 | . 1 1 1 3 3 2 4 Weapon 1 | . 1 3 2 2 2 . 1 Tool/Special . | . . . . . . . . Unused Backups 18 | . 1 . 4 3 2 . 8 Power 3 | . . . . . 1 . 2 Propulsion 7 | . . . 4 3 . . . Utility 7 | . . . . . 1 . 6 Weapon 1 | . 1 . . . . . . Tool/Special . | . . . . . . . . Average Slot Usage (%) 71 | . 85 88 96 93 99 47 49 Engine 4 | . 14 11 11 8 . . . Reactor 3 | . . . . . . 4 6 Treads 16 | . 28 22 14 25 37 12 8 Leg 1 | . . . 6 . . . . Device 7 | . . 9 20 15 6 . 1 Storage 11 | . 14 23 22 18 15 3 4 Processor 1 | . . . . 4 7 1 . Protection 5 | . . . . 2 7 8 10 Energy Gun 1 | . 12 . . . . 3 . Ballistic Gun 13 | . 14 11 16 18 15 8 12 Peak Build Rating 55 | 6 8 11 13 21 31 51 55 Average Rating 28 | 5 6 10 11 16 27 39 46 On Entrance 17 | . 6 8 10 13 21 31 51 Naked Turns 55 | . . . . . . 55 . Heaviest Build 90 | 13 30 35 37 38 40 73 90 Greatest Support 114 | 40 40 40 46 66 114 108 90 Greatest Overweight (x) 7 | . . . 4 . . 7 1 Average Overweight (x) . | . . . . . . . . Largest Inventory Capacity 15 | 8 15 15 15 15 15 15 15 Average Capacity 12 | 6 14 15 15 15 15 7 11 Most Carried 15 | 6 13 14 15 15 15 15 14 Average Carried 10 | 4 8 12 13 14 14 6 9 Final Capacity 15 | 8 15 15 15 15 15 5 15 Final Carried 15 | 6 13 13 15 15 15 5 12 Class Distribution -------------------- 67% | Mutant 32% | Scavenger-Mutant Dominant Class ---------------- Mutant | -10/Materials Mutant | -9/Materials Mutant | -9/Storage Scavenger-Mutant | -8/Materials Mutant | -7/Factory Mutant | -7/Waste Mutant | -7/Factory Resources | -11 -10 -9 -9 -8 -7 -7 -7 ----------- Run | Yrd Mat Mat Sto Mat Fac Was Fac Matter Collected 1376 | 205 149 . 570 156 95 70 131 Remotely 716 | . . . 570 146 . . . Salvage Created 1519 | . 145 . 731 197 . 31 415 Parts 84 | . 9 . 45 5 . 1 24 Haulers Intercepted . | . . . . . . . . Recyclers Shooed 1 | . . . 1 . . . . Parts Field Recycled . | . . . . . . . . Retrieved Matter . | . . . . . . . . Parts Self-Destructed . | . . . . . . . . Prevented . | . . . . . . . . Kills | -11 -10 -9 -9 -8 -7 -7 -7 ------- Run | Yrd Mat Mat Sto Mat Fac Was Fac Combat Hostiles Destroyed 34 | . 4 . 16 4 . 1 9 Guns 20 | . 3 . 10 4 . 1 2 Cannons 3 | . 1 . 2 . . . . AOE 11 | . . . 4 . . . 7 Classes Destroyed 13 | . 2 . 6 . . . 5 Worker 3 | . . . 2 . . . 1 Builder 5 | . 2 . . . . . 3 Recycler 2 | . . . 1 . . . 1 Mechanic 1 | . . . . . . . 1 Watcher 1 | . . . 1 . . . . Swarmer 2 | . . . 2 . . . . Grunt 14 | . 4 . 6 4 . . . Duelist 1 | . . . 1 . . . . Sentry 9 | . . . 7 . . 1 1 Specialist 3 | . . . . . . . 3 Hunter 2 | . . . . . . . 2 Programmer 2 | . . . . . . . 2 Heavy 1 | . . . . . . . 1 Best Kill Streak 9 | . 4 . 9 4 . 1 7 Combat Bots Only 6 | . 2 . 5 4 . 1 6 Max Kills in Single Turn 4 | . 2 . 4 1 . 1 4 Gunslinging . | . . . . . . . . Exploded 4 | . . . 2 . . . 4 Melee . | . . . . . . . . Uniques/NPCs Destroyed . | . . . . . . . . Combat | -11 -10 -9 -9 -8 -7 -7 -7 -------- Run | Yrd Mat Mat Sto Mat Fac Was Fac Hostile Shots Fired 388 | . 32 . 82 18 . 103 153 Missed 138 | . 10 . 35 9 . 34 50 Hits 250 | . 22 . 47 9 . 69 103 Melee 17 | . . . 5 . . 12 . Projectile 233 | . 22 . 42 9 . 57 103 AOE 2 | . . . . . . . 2 Critical Strikes 15 | . . . 2 2 . 9 2 Damage Taken 4545 | . 240 . 802 252 . 1176 2075 Core 915 | . 21 . 175 15 . 513 191 Absorbed by Shields . | . . . . . . . . Ignored by Resistances 309 | . . . . . . . 309 Regen/Repaired (Parts) 135 | . . . 18 117 . . . Core Remaining (%) 86 | 100 91 . 56 97 . . . Volleys Fired 128 | . 19 . 37 16 2 19 35 Largest 2 | . 2 . 2 2 2 2 2 Hottest 70 | . 70 . 53 43 43 62 64 Shots Fired 234 | . 38 . 67 32 4 25 68 Gun 201 | . 34 . 51 32 4 20 60 Cannon 15 | . 3 . 12 . . . . Launcher 18 | . 1 . 4 . . 5 8 Special . | . . . . . . . . Kinetic 201 | . 22 . 63 32 4 20 60 Thermal 15 | . 15 . . . . . . Explosive 18 | . 1 . 4 . . 5 8 Electromagnetic . | . . . . . . . . Robot Hit Streak 26 | . 6 . 26 9 5 11 12 Robot Miss Streak 4 | . 3 . 2 4 1 1 4 Penetration Max . | . . . . . . . . Secondary Targets . | . . . . . . . . Shots Hit Robots 160 | . 22 . 49 20 3 22 44 Core Hits 96 | . 11 . 32 11 2 8 32 Critical Kills 1 | . . . 1 . . . . Critical Parts Destroyed . | . . . . . . . . Critical Strikes 2 | . 1 . 1 . . . . Burn 1 | . 1 . . . . . . Destroy 1 | . . . 1 . . . . Melee Attacks 3 | . . . . . . . 3 Impact . | . . . . . . . . Slashing 3 | . . . . . . . 3 Piercing . | . . . . . . . . Sneak Attacks . | . . . . . . . . Combat Hostiles . | . . . . . . . . Follow-up Attacks . | . . . . . . . . Damage Inflicted 4177 | . 298 . 1113 272 35 647 1812 Guns 1864 | . 206 . 499 272 30 232 625 Cannons 142 | . 19 . 123 . . . . Explosions 2057 | . 73 . 490 . . 415 1079 Melee 94 | . . . . . . . 94 Ramming 20 | . . . 1 . 5 . 14 Kinetic 1907 | . 126 . 622 272 30 232 625 Thermal 99 | . 99 . . . . . . Explosive 2057 | . 73 . 490 . . 415 1079 Electromagnetic . | . . . . . . . . Impact . | . . . . . . . . Slashing 94 | . . . . . . . 94 Piercing . | . . . . . . . . Highest Corruption . | . . . . . . . . Average Corruption . | . . . . . . . . Corruption Purged . | . . . . . . . . Corruption Blocked . | . . . . . . . . Overload Shots . | . . . . . . . . Overflow Damage 92 | . . . 33 . . 4 55 Projectiles . | . . . . . . . . Explosions 88 | . . . 33 . . 4 51 Melee 4 | . . . . . . . 4 Knockbacks . | . . . . . . . . Impact . | . . . . . . . . Kinetic . | . . . . . . . . Secondary . | . . . . . . . . Self-Inflicted Damage 329 | . . . 110 . . 106 113 Shots 10 | . . . 3 . . 4 3 Rammed 4 | . . . 1 . 1 . 2 Targets Rammed 4 | . . . 1 . 1 . 2 Kicked . | . . . . . . . . Crushed . | . . . . . . . . Highest Temperature 233 | . 136 . 21 16 . 6 233 Average Temperature 61 | . 49 . 5 7 . 2 78 Received Heat Transfer 744 | . 132 . 186 117 . 126 183 Siege Activations . | . . . . . . . . Martial Activations . | . . . . . . . . Shielding Activations . | . . . . . . . . Robots Disrupted . | . . . . . . . . Combat Hostiles . | . . . . . . . . Robots Corrupted . | . . . . . . . . Combat Hostiles . | . . . . . . . . Parts Fried . | . . . . . . . . Impact Corruptions . | . . . . . . . . Robots Melted . | . . . . . . . . Combat Hostiles . | . . . . . . . . Parts Melted 2 | . 2 . . . . . . Heat Transferred 370 | . 370 . . . . . . Parts Sabotaged . | . . . . . . . . Parts Stolen . | . . . . . . . . Parts Stripped . | . . . . . . . . Power Chain Reactions . | . . . . . . . . Alert | -11 -10 -9 -9 -8 -7 -7 -7 ------- Run | Yrd Mat Mat Sto Mat Fac Was Fac Maximum Alert Level 3 | . . . 1 . . . 3 Low Security (%) 71 | 100 100 100 83 100 100 100 20 Level 1 8 | . . . 16 . . . 16 Level 2 8 | . . . . . . . 27 Level 3 11 | . . . . . . . 36 Level 4 . | . . . . . . . . Level 5 . | . . . . . . . . High Security . | . . . . . . . . Max Security . | . . . . . . . . Peak Influence 1088 | . 55 18 250 72 . 20 1088 Initial 59 | . . 18 . 59 . . . Average 215 | . 9 6 141 21 . 1 574 Influence Increases 2512 | . 115 . 538 94 . 80 1685 Destroy 0b10 Robot/C 1120 | . 80 . 320 80 . 20 620 Destroy 0b10 Robot/NC 115 | . 10 . 20 . . . 85 Destroy Leader 268 | . 20 . 102 . . . 146 Allied During Kill 508 | . . . . . . . 508 Successful Hack 32 | . . . 2 13 . . 17 Disable Machine 150 | . . . 30 . . . 120 Destroy Structure 274 | . 5 . 34 1 . 60 174 Lose Combat Pursuer 45 | . . . 30 . . . 15 Influence Decreases 1627 | . 70 45 398 234 . 80 800 Entered New Map 108 | . . 27 . 81 . . . Time Decay 1100 | . 70 18 358 143 . 41 470 Lost Part 137 | . . . 40 10 . 37 50 Lost Ally 132 | . . . . . . 2 130 Purge Threat 150 | . . . . . . . 150 Squads Dispatched 19 | . 3 . 2 1 1 . 12 Investigation 4 | . . . 1 . . . 3 Extermination 4 | . . . . . . . 4 Reinforcement 11 | . 3 . 1 1 1 . 5 Assault . | . . . . . . . . Garrison . | . . . . . . . . Intercept . | . . . . . . . . Searches Triggered . | . . . . . . . . Construction Impeded 1 | . . . . . . . 1 Haulers Reinforced 1 | . . . . . . . 1 Active Scanning Responses . | . . . . . . . . Cargo Convoy Interrupts 1 | . . . . . . . 1 Stealth | -11 -10 -9 -9 -8 -7 -7 -7 --------- Run | Yrd Mat Mat Sto Mat Fac Was Fac Distress Signals 6 | . 2 . . 2 1 . 1 Communications Jammed . | . . . . . . . . Distress Signals . | . . . . . . . . Times Spotted 80 | . 8 3 19 6 5 7 32 Peak Tracking Total 7 | . 4 3 4 3 3 3 7 Tactical Retreats 3 | . . . 2 . . . 1 Traps | -11 -10 -9 -9 -8 -7 -7 -7 ------- Run | Yrd Mat Mat Sto Mat Fac Was Fac Traps Triggered 3 | . . . . . 1 . 2 Indirectly . | . . . . . . . . Trap Hack Attempts . | . . . . . . . . Triggered . | . . . . . . . . Disarmed . | . . . . . . . . Reprogrammed . | . . . . . . . . Reused . | . . . . . . . . Traps Extracted . | . . . . . . . . Installed . | . . . . . . . . Triggered . | . . . . . . . . Machines | -11 -10 -9 -9 -8 -7 -7 -7 ---------- Run | Yrd Mat Mat Sto Mat Fac Was Fac Machines Disabled 10 | . . . 2 . . . 8 Max in Single Turn 1 | . . . 1 . . . 1 Machines Repaired . | . . . . . . . . Machines Dismantled . | . . . . . . . . Machines Sabotaged . | . . . . . . . . Overloaded Fab Kills . | . . . . . . . . Hacking | -11 -10 -9 -9 -8 -7 -7 -7 --------- Run | Yrd Mat Mat Sto Mat Fac Was Fac Machines Accessed 14 | . 2 . 2 3 . . 7 Terminals 8 | . 2 . 1 1 . . 4 Fabricators 2 | . . . . . . . 2 Repair Stations 3 | . . . 1 1 . . 1 Recycling Units . | . . . . . . . . Scanalyzers 1 | . . . . 1 . . . Garrison Access . | . . . . . . . . Total Hacks 49 | . 6 . 10 17 . . 16 Successful 25 | . 1 . 4 14 . . 6 Failed 24 | . 5 . 6 3 . . 10 Catastrophic 4 | . 1 . 1 . . . 2 Database Lockouts . | . . . . . . . . Manual 9 | . 2 . 2 . . . 5 Terminals 22 | . 6 . 4 5 . . 7 Fabricators 6 | . . . . . . . 6 Repair Stations 12 | . . . 6 3 . . 3 Recycling Units . | . . . . . . . . Scanalyzers 9 | . . . . 9 . . . Garrison Access . | . . . . . . . . Terminal Hacks 9 | . 1 . 1 4 . . 3 Record 1 | . . . . 1 . . . Open DSF 2 | . . . . . . . 2 Level Access Points 1 | . . . 1 . . . . Terminal Index 1 | . 1 . . . . . . Unreport Threat 1 | . . . . . . . 1 Locate Traps 1 | . . . . 1 . . . Investigation Status 1 | . . . . 1 . . . Registered Components 1 | . . . . 1 . . . Fabricator Hacks 2 | . . . . . . . 2 Load Schematic 2 | . . . . . . . 2 Repair Station Hacks 6 | . . . 3 2 . . 1 Scan Component 4 | . . . 2 1 . . 1 Repair 2 | . . . 1 1 . . . Recycling Unit Hacks . | . . . . . . . . Scanalyzer 8 | . . . . 8 . . . Insert Component 4 | . . . . 4 . . . Analyze 4 | . . . . 4 . . . Garrison Access Hacks . | . . . . . . . . Unauthorized Hacks . | . . . . . . . . Terminals . | . . . . . . . . Fabricators . | . . . . . . . . Repair Stations . | . . . . . . . . Recycling Units . | . . . . . . . . Scanalyzers . | . . . . . . . . Garrison Access . | . . . . . . . . Data Cores Recovered . | . . . . . . . . Used . | . . . . . . . . Hacking Detections 12 | . 2 . 2 2 . . 6 Full Trace Events 5 | . . . 1 1 . . 3 Feedback Events . | . . . . . . . . Feedback Blocked . | . . . . . . . . Robot Schematics Acquired . | . . . . . . . . Robots Built . | . . . . . . . . Authchips . | . . . . . . . . Time . | . . . . . . . . Total Robot Build Rating . | . . . . . . . . Part Schematics Acquired 4 | . . . . 4 . . . Parts Built . | . . . . . . . . Authchips . | . . . . . . . . Time . | . . . . . . . . Total Part Build Rating . | . . . . . . . . Parts Repaired 2 | . . . 1 1 . . . Time 58 | . . . 32 26 . . . Parts Recycled . | . . . . . . . . Recycled Matter . | . . . . . . . . Retrieved Matter . | . . . . . . . . Retrieved Components . | . . . . . . . . Parts Scanalyzed 4 | . . . . 4 . . . Part Schematics Acquired 4 | . . . . 4 . . . Parts Damaged . | . . . . . . . . Bothacking | -11 -10 -9 -9 -8 -7 -7 -7 ------------ Run | Yrd Mat Mat Sto Mat Fac Was Fac Used RIF Installer . | . . . . . . . . Robots Hacked . | . . . . . . . . Non-combat . | . . . . . . . . Combat . | . . . . . . . . Robot Hacks Applied . | . . . . . . . . Relay Couplers Released . | . . . . . . . . Fabnet Peak Effective % . | . . . . . . . . Robots Rewired . | . . . . . . . . Allies Hacked 2 | . . . . . . . 2 Hacks Repelled . | . . . . . . . . Allies | -11 -10 -9 -9 -8 -7 -7 -7 -------- Run | Yrd Mat Mat Sto Mat Fac Was Fac Total Allies 20 | . . . . . . 20 . Largest Group 19 | . . . . . . 19 14 Highest-Rated Group 475 | . . . . . . 475 394 Highest-Rated Ally 35 | . . . . . . 35 35 Total Orders . | . . . . . . . . Ally Attacks 243 | . . . . . . 91 152 Total Damage 6701 | . . . . . . 2950 3751 Kills 44 | . . . . . . 8 36 Allies Corrupted . | . . . . . . . . Allies Melted . | . . . . . . . . Intel | -11 -10 -9 -9 -8 -7 -7 -7 ------- Run | Yrd Mat Mat Sto Mat Fac Was Fac Active Infowar (turns) 174 | . . . . . 83 91 . Sensors 174 | . . . . . 83 91 . Robot Analysis Total . | . . . . . . . . Derelict Logs Recovered . | . . . . . . . . Drone Launches . | . . . . . . . . Drone Recoveries . | . . . . . . . . Exploration | -11 -10 -9 -9 -8 -7 -7 -7 ------------- Run | Yrd Mat Mat Sto Mat Fac Was Fac Turns Passed 4054 | 112 321 74 858 495 196 714 1284 Spaces Moved 1985 | 63 154 43 386 245 109 409 576 Core 115 | 3 . . 5 . . 107 . Treads 1763 | 60 154 43 274 245 109 302 576 Legs 107 | . . . 107 . . . . Wheels . | . . . . . . . . Hover . | . . . . . . . . Flight . | . . . . . . . . Fastest Speed 50 | 50 160 160 160 160 160 50 160 Average Speed 171 | 154 160 160 172 160 162 156 193 Slowest Speed 400 | 160 160 160 260 160 164 400 240 Overloaded Moves . | . . . . . . . . Propulsion Burnouts . | . . . . . . . . Robots Hopped . | . . . . . . . . Potential Cave-ins 2 | . . . . . . 2 . Cave-ins Triggered . | . . . . . . . . Exploration Rate (%) 30 | 5 27 6 53 29 7 95 21 Regions Visited 7 Branch Regions 1 Pre-discovered Areas . | . . . . . . . . Known Exits Taken 1 | . . . 1 . . . . Unknown Exits Taken 4 | 1 1 1 . 1 . . . Scrap Searched . | . . . . . . . . Spaces Dug . | . . . . . . . . Terrain Destroyed 142 | . 5 . 32 . . 29 76 Melee . | . . . . . . . . Projectile 1 | . . . 1 . . . . AOE 141 | . 5 . 31 . . 29 76 Terrain Rammed . | . . . . . . . . Walls Destroyed . | . . . . . . . . Machines Disabled . | . . . . . . . . Actions | -11 -10 -9 -9 -8 -7 -7 -7 --------- Run | Yrd Mat Mat Sto Mat Fac Was Fac Total 2412 | 74 195 49 516 321 126 452 679 Wait 129 | . 10 . 55 38 . 1 25 Move 1979 | 62 153 42 385 244 109 408 576 Hop . | . . . . . . . . Pick Up 43 | 5 6 2 9 8 1 1 11 Fast Attach 34 | 6 1 1 8 2 1 12 3 Attach 21 | . 1 2 3 2 2 7 4 Detach 11 | . 2 1 2 . . 1 5 Swap 21 | 1 2 . 4 3 5 1 5 Drop 35 | . 1 1 12 8 5 2 6 Fire 128 | . 19 . 37 16 2 19 35 Melee 3 | . . . . . . . 3 Ram . | . . . . . . . . Kick . | . . . . . . . . Crush 4 | . . . 1 . 1 . 2 Escape Stasis 4 | . . . . . . . 4 Rewire . | . . . . . . . . Trap . | . . . . . . . . Miscellaneous . | . . . . . . . . Route ------- -11/Scrapyard -10/Materials -9/Materials -9/Storage -8/Materials -7/Factory -7/Waste -7/Factory History --------- Turn | Location | Event 3 | -11/Scrapyard | Discovered new exit (range 16) 113 | -11/Scrapyard | Entered Materials 309 | -10/Materials | Build established: Mutant 397 | -10/Materials | Discovered new exit (range 7) 434 | -10/Materials | Entered another Materials area 434 | -9/Materials | Evolved 2 slots: Utility x2 495 | -9/Materials | Discovered new exit (range 8) 508 | -9/Materials | Entered Storage 652 | -9/Storage | Repaired Weight Redist. System 771 | -9/Storage | Lost 3 parts (1n2w) 914 | -9/Storage | Identified exit to Materials 1226 | -9/Storage | Build established: Scavenger-Mutant 1366 | -9/Storage | Entered Materials 1366 | -8/Materials | Evolved 2 slots: Propulsion x1, Utility x1 1612 | -8/Materials | Repaired Lgt. Treads 1640 | -8/Materials | Met 7R-MNS 1821 | -8/Materials | Discovered new exit (range 10) 1861 | -8/Materials | Entered Factory 1861 | -7/Factory | Evolved 2 slots: Propulsion x2 1862 | -7/Factory | Caught up to 7R-MNS 2057 | -7/Factory | Sucked down chute 2057 | -7/Factory | Entered Waste 2058 | -7/Waste | Met a frightened Derelict 2071 | -7/Waste | Spotted C-40 Crusher 2083 | -7/Waste | Spotted C-40 Crusher 2133 | -7/Waste | Crushed by Compactor (1 part destroyed, 1 dropped) 2136 | -7/Waste | Crushed by Compactor (1 part destroyed, 1 dropped) 2148 | -7/Waste | Crushed by Compactor (1 part destroyed, 1 dropped) 2170 | -7/Waste | Spotted C-40 Crusher 2191 | -7/Waste | Lost 5 parts (3n2w) 2199 | -7/Waste | Crushed by Compactor (1 part destroyed, 1 dropped) 2202 | -7/Waste | Crushed by Compactor (1 part destroyed, 2 dropped) 2203 | -7/Waste | Spotted C-40 Crusher 2206 | -7/Waste | Crushed by Compactor (1 part destroyed, 1 dropped) 2211 | -7/Waste | Crushed by Compactor (1 part destroyed, 1 dropped) 2216 | -7/Waste | Crushed by Compactor (1 part destroyed, 1 dropped) 2220 | -7/Waste | Crushed by Compactor (1 part destroyed) 2236 | -7/Waste | Crushed by Compactor (1 part destroyed, 1 dropped) 2239 | -7/Waste | Crushed by Compactor (1 part destroyed) 2240 | -7/Waste | Core integrity fell below 50% 2241 | -7/Waste | Spotted C-40 Crusher 2259 | -7/Waste | Build established: Mutant 2265 | -7/Waste | Warlord forces began an assault 2270 | -7/Waste | Lost 10 parts (1p6n2u1w) 2282 | -7/Waste | Crushed by Compactor (1 part destroyed) 2284 | -7/Waste | Spotted C-40 Crusher 2285 | -7/Waste | Allies destroyed C-40 Crusher 2288 | -7/Waste | Allies destroyed C-40 Crusher 2291 | -7/Waste | Found Damper Plating 2296 | -7/Waste | Allies destroyed C-40 Crusher 2327 | -7/Waste | Lost 4 allies 2658 | -7/Waste | Discovered new exit (range 16) 2771 | -7/Waste | Entered Factory 2771 | -7/Factory | Accompanied by 14 allies 3545 | -7/Factory | Cargo convoy interrupted 3548 | -7/Factory | P-60 Hacker assimilated allied QG-WFR(g) 3613 | -7/Factory | P-60 Hacker assimilated allied D2-JRO(g) 3666 | -7/Factory | Lost 8 allies 3994 | -7/Factory | Core integrity fell below 20% 4040 | -7/Factory | Build established: Scavenger-Mutant 4055 | -7/Factory | Destroyed by G-47 Trooper with Particle Gun Last Messages --------------- detected, Programmers report to Factory Zone 8W. 04011_ R-06 Scavenger collects Lgt. Ion Engine. 04015_ R-06 Scavenger collects Wheel. 04039_ The unstable cave ceiling collapses. 04042_ Damper Plating destroyed. 04044_ Fusion Modulator explodes. 04044_ Lgt. Treads destroyed. 04044_ Antimatter Reactor destroyed. 04044_ X-67 Chaingunner destroyed. 04044_ Fusion Modulator explodes. 04044_ Nuclear Reactor explodes. 04044_ U-05 Engineer lays Concrete. 04048_ U-05 Engineer destroyed. 04048_ Destroyed Minigun. 04049_ U-05 Engineer lays Concrete. 04049_ Critical hit (Burn: +37). 04051_ U-05 Engineer lays Concrete. 04053_ Nuclear Reactor explodes. 04053_ U-05 Engineer lays Concrete. 04055_ Battle Rifle destroyed. Map ----- +----------------------------------------------------+ | ?????????????????????# # ######??????# | | ??????????????????##########+######### # ######## | | ?????????????????# ?# / # | | ?????????????????# " # ##### ! # | | ?????????????????+ " # ## %""""""" # | | ??????????????? ?? " + ##### """"""" # | | ???????????# ???! " # #???#"" """"""" # | | ???????????# ? " # #???#"" """"""" # | | ????????#### ? """ "?# #???#"" + | | ???????? #??R ??# #???#T # | | ????????? ?"" ??# #???#"" # | | ????????? ??"???# #???#"" !!!# | | ?????????""" ??????# #???#"" !!!# | | ???????" """ u####????# #???# !!!# | | ??????"" """ ##### #???############## | | ?????""" """ %u #T ## #????????????????# | | ?????? #????????????????# | | ???????? ""% g #???????????????## | | ???????" """ gg #???????????????# | | ??????"" ""% =% #???????????????# | | ?""" """ """ g =|= #???????????????# | | ? g !%* % % #????R?????####### | | """ """ """ g%!! ## ""??# | | """ """ """ " ! ! x a ?????# """ | | """ """ """ T #### ;=%!;;;;#+#??????????""" # | | ?""" """ """ " #??# !@ #??????????""" # | | #??# #?????????? ## | | #??# #????????? """ ??? | | #######/######+#### #???????? """ ??? | | ?????# !#????????????" ??? | | ?????# #???????????? ???? | | ?????# #????????????????? | | ?????# #????????????????+ | | ?????# """ " #????????????????? | | ?????# """ " ;;;####????????????????? | | ?????# """ "" ####???????????????????? | | ?????######## ##??????????????????????? | | ??????????????? ????????????????????????? | | ????????????????? ????????????????????????# | | ???????????????????? ????????????????????????# | | ?????????????????????? ????????????????????????# | | ?????????????????????????????????????????????????# | | ?????????????????????????????????????????????????# | | ?????????????????????????????????????????????????# | | ?????????????????????????????????????????????????# | | ?????????????????????????????????????????????????# | | ?????????????????????????????????????????????????# | | ?????????????????????????????????????????????????# | | ?????????????????????????????????????????????????# | | ?????????????????????????????????????????????????# | +----------------------------------------------------+ Best States ------------- Heat Dissipation 48 Energy Generation 21 Energy Capacity 325 Matter Stores 500 Matter Capacity 700 Sight Range 16 Robot Scan Range 15 Terrain Scan Density 10 Additional Mass Support 6 Armor Coverage 1825 Resistance: EM 90 Evasion (%) 50 Targeting Accuracy 8 Recoil Reduction 5 Item Schematics ----------------- Lgt. Treads | -8/Materials | Scanalyzed Grenade Launcher | -8/Materials | Scanalyzed Lgt. Ion Engine | -8/Materials | Scanalyzed Heat Sink | -8/Materials | Scanalyzed Robot Schematics ------------------ None Fabricated ------------ Nothing Repaired ---------- Weight Redist. System | 18% | -9/Storage Lgt. Treads | 16% | -8/Materials Alien Tech Used ----------------- None Achievements -------------- Serviceable Loadout The More The Merrier Challenges ------------ None Game ------ Seed KineticDiametricMembrane Manual? 0 Play Time 01:01:56 Cumulative 14.1 hours Start 2025.05.30 @ 19:47:30 End 2025.05.31 @ 20:48:26 Sessions 19 Manual Loads 0 Difficulty Rogue Special Mode None Game No. 21 Rogue 21 Adventurer 0 Explorer 0 Win Type - Total 0 Types 0/0/0/0/0/0/0/0/0/0 Lore% 2 Gallery% 11 Achievement% 12 Wizard Run 0 Options --------- Layout 1 ASCII 0 Keyboard 1 Movement Vi Keybinds 0 Fullscreen 0 Font 28/SmallcapsGlow Map View 59x45 Zoom Use 0% Tactical HUD 1 Map Filters NONE Filters NONE Steam 1 RUN: f95a76c4-e6cd-448b-85a7-47ef209330ce